Cogmind - Beta 13 @@@ ROGUE MODE // 2024.04.01 @ 17:51:08 Player: weppet Result: Destroyed self with Grenade Launcher Performance ------------- Evolutions (0) 0 Regions Visited (2) 400 Robots Destroyed (7) 35 Value Destroyed (179) 179 Prototype IDs (0) 0 Alien Tech Used (0) 0 Bonus (-27) -27 TOTAL SCORE: 587 Bonus ------- Friendly Fire -27 Cogmind --------- Core Integrity 0/250 Matter 205/300 Energy 99/100 System Corruption 2% Temperature Cool (0) Movement Hovering (60) Location -10/Mines Parts ------- > --- POWER (1) -------- (None) > --- PROPULSION (2) --- Airjet > --- UTILITY (2) ------ Long-range Tractor Beam > --- WEAPON (2) ------- Assault Rifle Grenade Launcher > --- INVENTORY (5) ---- Ion Engine Aluminum Leg Aluminum Leg Compact Matter Pod (0) Peak State ------------ > --- POWER ------------ Light Nuclear Core > --- PROPULSION ------- Airjet > --- UTILITY ---------- Compact Battery Long-range Tractor Beam > --- WEAPON ----------- Assault Rifle Grenade Launcher > --- INVENTORY -------- Ion Engine Aluminum Leg Aluminum Leg Compact Matter Pod [Rating: 14] Favorites ----------- Power Light Ion Engine Engine Light Ion Engine Power Core Light Nuclear Core Propulsion Wheel Leg Aluminum Leg Wheel Wheel Hover Unit Airjet Utility Small Storage Unit Device Heat Sink Storage Small Storage Unit Weapon Medium Laser Energy Gun Medium Laser Ballistic Gun Assault Rifle Launcher Grenade Launcher Build | -11 -10 -10 ------- Run | Yrd Mat Min Slots Evolved . | . . . Power . | . . . Propulsion . | . . . Utility . | . . . Weapon . | . . . Parts Attached 22 | 5 10 7 Power 3 | 1 1 1 Engine 2 | 1 1 . Core 1 | . . 1 Reactor . | . . . Propulsion 6 | 2 2 2 Treads . | . . . Leg 3 | . 2 1 Wheel 2 | 2 . . Hover 1 | . . 1 Flight . | . . . Utility 4 | . 2 2 Device 2 | . 1 1 Storage 2 | . 1 1 Processor . | . . . Hackware . | . . . Protection . | . . . Artifact . | . . . Weapon 9 | 2 5 2 Energy Gun 3 | 1 2 . Energy Cannon . | . . . Ballistic Gun 4 | 1 2 1 Ballistic Cannon . | . . . Launcher 2 | . 1 1 Special Weapon . | . . . Impact Weapon . | . . . Slashing Weapon . | . . . Piercing Weapon . | . . . Special Melee Weapon . | . . . Unidentified Prototypes . | . . . Parts Lost 5 | . 4 1 Power 1 | . 1 . Propulsion 2 | . 2 . Utility 2 | . 1 1 Weapon . | . . . Highest Loss Streak 4 | . 4 1 To Critical Strikes . | . . . Average Slot Usage (%) 79 | . 82 71 Engine 9 | . 10 4 Core 1 | . . 7 Leg 11 | . 12 7 Wheel 9 | . 12 . Hover 1 | . . 4 Device 7 | . 6 10 Storage 11 | . 11 10 Energy Gun 11 | . 15 . Ballistic Gun 8 | . 6 14 Launcher 6 | . 6 9 Naked Turns . | . . . Heaviest Build 16 | 7 15 16 Greatest Support 20 | 20 20 20 Greatest Overweight (x) 4 | . 2 4 Average Overweight (x) . | . . 1 Largest Inventory Capacity 8 | 5 8 8 Average Capacity 6 | 5 7 7 Most Carried 8 | 4 5 8 Average Carried 3 | 1 4 4 Final Capacity 8 | 5 8 5 Final Carried 4 | 4 4 4 Class Distribution -------------------- 100% | Mutant Dominant Class ---------------- Mutant | -10/Materials Mutant | -10/Mines Resources | -11 -10 -10 ----------- Run | Yrd Mat Min Matter Collected 376 | 256 106 14 Remotely 14 | . . 14 Salvage Created 233 | 48 175 10 Parts 10 | 2 8 . Haulers Intercepted . | . . . Recyclers Shooed 1 | . 1 . Parts Field Recycled . | . . . Retrieved Matter . | . . . Parts Self-Destructed . | . . . Prevented . | . . . Kills | -11 -10 -10 ------- Run | Yrd Mat Min Combat Hostiles Destroyed 11 | 1 6 4 Guns 6 | 1 5 . AOE 5 | . 1 4 Classes Destroyed 3 | 1 1 1 Swarmer 3 | . 3 . Grunt 4 | 1 3 . Assembled 4 | . . 4 Best Kill Streak 4 | 1 4 4 Combat Bots Only 4 | 1 4 4 Max Kills in Single Turn 3 | 1 1 3 Gunslinging . | . . . Exploded 3 | . 1 3 Melee . | . . . Uniques/NPCs Destroyed . | . . . Combat | -11 -10 -10 -------- Run | Yrd Mat Min Hostile Shots Fired 75 | 2 67 6 Missed 25 | . 25 . Damage Taken 690 | 21 433 236 Core 251 | 10 149 92 Absorbed by Shields . | . . . Core Remaining (%) 96 | 96 . . Volleys Fired 32 | 2 27 3 Largest 2 | 2 2 2 Hottest 100 | 70 100 50 Shots Fired 55 | 4 45 6 Gun 50 | 4 43 3 Cannon . | . . . Launcher 5 | . 2 3 Special . | . . . Kinetic 7 | 2 2 3 Thermal 43 | 2 41 . Explosive 5 | . 2 3 Electromagnetic . | . . . Robot Hit Streak 8 | 3 6 8 Robot Miss Streak 3 | . 3 . Penetration Max . | . . . Secondary Targets 1 | . 1 . Max Gunslinging Chain 1 | . 1 . Shots Hit Robots 36 | 3 27 6 Core Hits 25 | 2 13 10 Critical Kills 1 | . 1 . Critical Parts Destroyed . | . . . Critical Strikes 4 | . 4 . Burn 3 | . 3 . Destroy 1 | . 1 . Melee Attacks . | . . . Impact . | . . . Slashing . | . . . Piercing . | . . . Sneak Attacks . | . . . Combat Hostiles . | . . . Follow-up Attacks . | . . . Damage Inflicted 673 | 34 372 267 Guns 401 | 34 327 40 Cannons . | . . . Explosions 270 | . 43 227 Melee . | . . . Ramming 2 | . 2 . Kinetic 64 | 10 14 40 Thermal 337 | 24 313 . Explosive 270 | . 43 227 Electromagnetic . | . . . Impact . | . . . Slashing . | . . . Piercing . | . . . Highest Corruption 2 | . 2 2 Average Corruption 1 | . 1 2 Corruption Purged . | . . . Corruption Blocked . | . . . Effects 1 | . . 1 Matter Fused 1 | . . 1 Overload Shots . | . . . Overflow Damage 19 | . . 19 Projectiles . | . . . Explosions 19 | . . 19 Melee . | . . . Knockbacks . | . . . Impact . | . . . Kinetic . | . . . Secondary . | . . . Self-Inflicted Damage 81 | . 5 76 Shots 4 | . 1 3 Rammed . | . . . Targets Rammed 1 | . 1 . Kicked 1 | . 1 . Crushed . | . . . Highest Temperature 245 | 30 245 12 Average Temperature 115 | 19 130 5 Received Heat Transfer 268 | 12 216 40 Effects 2 | . 2 . Interference 2 | . 2 . Siege Activations . | . . . Robots Corrupted . | . . . Combat Hostiles . | . . . Parts Fried . | . . . Impact Corruptions . | . . . Robots Melted . | . . . Combat Hostiles . | . . . Parts Melted 2 | . 2 . Heat Transferred 1221 | 74 1147 . Parts Sabotaged . | . . . Parts Stolen . | . . . Parts Stripped . | . . . Power Chain Reactions . | . . . Alert | -11 -10 -10 ------- Run | Yrd Mat Min Peak Influence 192 | 20 192 19 Initial 16 | . 13 16 Average 54 | 11 82 15 Maximum Alert Level . | . . . Low Security (%) 100 | 100 100 100 Level 1 . | . . . Level 2 . | . . . Level 3 . | . . . Level 4 . | . . . Level 5 . | . . . High Security . | . . . Max Security . | . . . Squads Dispatched 2 | . 2 . Investigation 1 | . 1 . Extermination . | . . . Reinforcement 1 | . 1 . Assault . | . . . Garrison . | . . . Intercept . | . . . Searches Triggered . | . . . Construction Impeded . | . . . Haulers Reinforced . | . . . Active Scanning Responses . | . . . Cargo Convoy Interrupts . | . . . Stealth | -11 -10 -10 --------- Run | Yrd Mat Min Distress Signals . | . . . Communications Jammed . | . . . Distress Signals . | . . . Times Spotted 16 | 1 11 4 Peak Tracking Total 8 | 1 8 4 Tactical Retreats 2 | . 2 . Traps | -11 -10 -10 ------- Run | Yrd Mat Min Traps Triggered 5 | . 3 2 Indirectly . | . . . Trap Hack Attempts . | . . . Triggered . | . . . Disarmed . | . . . Reprogrammed . | . . . Reused . | . . . Traps Extracted . | . . . Installed . | . . . Triggered . | . . . Machines | -11 -10 -10 ---------- Run | Yrd Mat Min Machines Disabled . | . . . Max in Single Turn . | . . . Machines Repaired . | . . . Machines Dismantled . | . . . Machines Sabotaged . | . . . Overloaded Fab Kills . | . . . Hacking | -11 -10 -10 --------- Run | Yrd Mat Min Machines Accessed 3 | . 2 1 Terminals 2 | . 2 . Fabricators . | . . . Repair Stations . | . . . Recycling Units . | . . . Scanalyzers . | . . . Garrison Access . | . . . Total Hacks 6 | . 5 1 Successful 6 | . 5 1 Failed . | . . . Catastrophic . | . . . Database Lockouts . | . . . Manual . | . . . Terminals 5 | . 5 . Fabricators . | . . . Repair Stations . | . . . Recycling Units . | . . . Scanalyzers . | . . . Garrison Access . | . . . Terminal Hacks 6 | . 5 1 Record 2 | . 2 . Robot Analysis 1 | . 1 . Open Door 1 | . . 1 Alert Level 1 | . 1 . Unreport Threat 1 | . 1 . Fabricator Hacks . | . . . Repair Station Hacks . | . . . Recycling Unit Hacks . | . . . Scanalyzer . | . . . Garrison Access Hacks . | . . . Unauthorized Hacks . | . . . Terminals . | . . . Fabricators . | . . . Repair Stations . | . . . Recycling Units . | . . . Scanalyzers . | . . . Garrison Access . | . . . Data Cores Recovered . | . . . Used . | . . . Hacking Detections 2 | . 2 . Full Trace Events . | . . . Feedback Events . | . . . Feedback Blocked . | . . . Robot Schematics Acquired . | . . . Robots Built . | . . . Authchips . | . . . Time . | . . . Total Robot Build Rating . | . . . Part Schematics Acquired . | . . . Parts Built . | . . . Authchips . | . . . Time . | . . . Total Part Build Rating . | . . . Parts Repaired . | . . . Time . | . . . Parts Recycled . | . . . Recycled Matter . | . . . Retrieved Matter . | . . . Retrieved Components . | . . . Parts Scanalyzed . | . . . Part Schematics Acquired . | . . . Parts Damaged . | . . . Bothacking | -11 -10 -10 ------------ Run | Yrd Mat Min Used RIF Installer . | . . . Robots Hacked . | . . . Non-combat . | . . . Combat . | . . . Robot Hacks Applied . | . . . Relay Couplers Released . | . . . Fabnet Peak Effective % . | . . . Robots Rewired . | . . . Allies Hacked . | . . . Hacks Repelled . | . . . Allies | -11 -10 -10 -------- Run | Yrd Mat Min Total Allies . | . . . Largest Group . | . . . Highest-Rated Group . | . . . Highest-Rated Ally . | . . . Total Orders . | . . . Ally Attacks . | . . . Total Damage . | . . . Kills . | . . . Allies Corrupted . | . . . Allies Melted . | . . . Intel | -11 -10 -10 ------- Run | Yrd Mat Min Robot Analysis Total 1 | . 1 . Derelict Logs Recovered . | . . . Drone Launches . | . . . Drone Recoveries . | . . . Exploration | -11 -10 -10 ------------- Run | Yrd Mat Min Turns Passed 512 | 120 307 85 Spaces Moved 382 | 126 217 39 Core 29 | 18 4 7 Treads . | . . . Legs 116 | . 99 17 Wheels 222 | 108 114 . Hover 15 | . . 15 Flight . | . . . Fastest Speed 50 | 50 80 60 Average Speed 96 | 75 99 144 Slowest Speed 250 | 80 150 250 Overloaded Moves . | . . . Propulsion Burnouts . | . . . Robots Hopped . | . . . Cave-ins Triggered . | . . . Exploration Rate (%) 15 | 7 28 11 Regions Visited 2 Branch Regions 1 Pre-discovered Areas . | . . . Known Exits Taken . | . . . Unknown Exits Taken 2 | 1 1 . Scrap Searched . | . . . Spaces Dug . | . . . Terrain Destroyed 24 | . 12 12 Melee . | . . . Projectile . | . . . AOE 24 | . 12 12 Terrain Rammed . | . . . Walls Destroyed . | . . . Machines Disabled . | . . . Actions | -11 -10 -10 --------- Run | Yrd Mat Min Total 474 | 146 261 67 Wait 5 | 5 . . Move 380 | 125 216 39 Hop . | . . . Pick Up 24 | 9 5 10 Fast Attach 1 | . 1 . Attach 15 | 5 5 5 Detach 2 | . 1 1 Swap 6 | . 4 2 Drop 8 | . 1 7 Fire 32 | 2 27 3 Melee . | . . . Ram . | . . . Kick 1 | . 1 . Crush . | . . . Escape Stasis . | . . . Rewire . | . . . Trap . | . . . Miscellaneous . | . . . Route ------- -11/Scrapyard -10/Materials -10/Mines History --------- Turn | Location | Event 2 | -11/Scrapyard | Met Revision 17 47 | -11/Scrapyard | Discovered new exit (range 8) 121 | -11/Scrapyard | Entered Materials 287 | -10/Materials | Core integrity fell below 50% 308 | -10/Materials | Lost 4 parts (1p2n1u) 320 | -10/Materials | Build established: Mutant 362 | -10/Materials | Discovered new exit (range 12) 428 | -10/Materials | Entered Mines 429 | -10/Mines | Assembled infested the area 440 | -10/Mines | Met a Derelict who couldn't figure out how to use a Trap Extractor 510 | -10/Mines | Core integrity fell below 20% 513 | -10/Mines | Destroyed self with Grenade Launcher Last Messages --------------- Dropped Sml. Storage Unit. Acquired Aluminum Leg. Acquired Com. Battery. A derelict is hurriedly installing traps. Acquired 4 matter. as-83118 suffers critical hit (Burn). Destroyed Asb. F-torch. ZM-HKG(g): "Hehe, this'll put a wrench in their mining defense operations..." ZM-HKG(g) slips into the shadows. Lgt. Nuclear Core severed. as-44086 destroyed. as-94699 destroyed. as-83118 destroyed. Com. Battery destroyed. Destroyed Com. Battery. Acquired 10 matter. System corrupted: Matter fused (-5). [Achievement: Let's See Who's Tougher] as-38711 destroyed. Map ----- +----------------------------------------------------+ | ??????????????????????????????? | | ??????????????????????????????? | | ??????????????????????????????? | | ??????????????????????????????? | | ??????????????????????????????? | | ??????????????????????????????? | | ??????????????????????????????? | | ??????????????????????????????? | | ??????????????????????????????? | | ??????????????????????????????? | | ??????????????????????????????? | | ??????????????????????????????? | | ???????????????????????????#??? | | ????????????????????##???? #??? | | ???????????????????? ???? ??? | | ??????????????#?????# ##?? ??? | | ??????????????# ????# ?? #??? | | ??????????????# ?###^ ^##^#??? | | ??????????????? # #??? | | ????????????????# #??? | | ??????????????### #??? | | ??????????????? ???? | | ?????????????????# #???? | | ?????????????????# #???? | | ?????????????????# ###??? | | ?????????????????## ### @ ##?? | | ????????????????###### ##? | | ????????????????#"[ #? | | ????????????????# [ X #? | | ????????????????#" ! ##? | | ????????????????#"/! = ###?? | | ????????????????# ! = ##???? | | ????????????????#" ## #????? | | ????????????????###### #????? | | ?????????????????????# ##???? | | ?????????????????????# ##??? | | ????????????????????## #??? | | ?????????????????#### #??? | | ?????????????????# ##??? | | ????????????????# #???? | | ????????????????# # ##???? | | ????????????????## ## ##????? | | ?????????????????###?# #?????? | | ?????????????????????# #?????? | | ?????????????????????# #?????? | | ?????????????????????# #?????? | | ????????????????????? #?????? | | ????????????????????? #?????? | | ?????????????????????####?????? | | ??????????????????????????????? | +----------------------------------------------------+ Best States ------------- Heat Dissipation 35 Energy Generation 14 Energy Capacity 360 Matter Stores 300 Matter Capacity 300 Sight Range 16 Terrain Scan Density 10 Evasion (%) 55 Item Schematics ----------------- None Robot Schematics ------------------ None Fabricated ------------ Nothing Alien Tech Used ----------------- None Achievements -------------- Let's See Who's Tougher Challenges ------------ None Game ------ Seed ArmoredGammaFirepult Manual? 0 Play Time 00:17:42 Cumulative 2.0 hours Start 2024.04.01 @ 17:30:46 End 2024.04.01 @ 17:51:08 Sessions 1 Manual Loads 0 Difficulty Rogue Special Mode None Game No. 2 Rogue 2 Adventurer 0 Explorer 0 Win Type - Total 0 Types 0/0/0/0/0/0/0/0/0 Lore% 1 Gallery% 4 Achievement% 5 Wizard Run 0 Options --------- Layout 1 ASCII 0 Keyboard 0 Movement Mouse Keybinds 0 Fullscreen 1 Font 24/Smallcaps Map View 50x35 Zoom Use 0% Tactical HUD 0 Map Filters NONE Filters NONE Steam 1 RUN: 43bded1f-2a77-4ce1-8fa4-b070a23d44af